[Event "Indian Blitz Championship 2023"]
[Site "Nashik"]
[Date "2024.03.07"]
[Round "10.7"]
[White "Jinan Jomon"]
[Black "Wagh Suyog"]
[Result "0-1"]
[ECO "A17"]
[WhiteElo "2380"]
[BlackElo "2250"]
[Annotator "TA"]
[PlyCount "65"]
[EventDate "2024.03.07"]
[EventType "blitz"]
[EventCountry "IND"]
[SourceTitle "playchess.com"]
[Source "ChessBase"]
[SourceQuality "1"]
[TimeControl "180+2"]

{[%evp 9,65,8,11,6,20,6,12,2,11,-1,-13,-4,-5,-11,0,0,0,0,17,10,10,0,20,18,59,56,122,45,50,39,234,47,41,55,83,53,70,39,33,29,22,0,51,21,88,45,49,41,102,120,95,95,98,35,70,-8,-16,-335]} 1. Nf3 {[%emt 0:00:02]} Nf6 {[%emt 0:00:02]} 2. c4 {[%emt 0:00:03]} e6 {[%emt 0:00:02]} 3. Nc3 {[%emt 0:00:08]} d5 {[%emt 0:00:01]} 4. e3 {[%emt 0:00:01]} b6 {[%emt 0:00:04]} 5. b3 {[%emt 0:00:04]} Bb7 {[%emt 0:00:01]} 6. Bb2 {[%emt 0:00:08]} a6 {[%emt 0:00:01]} 7. cxd5 {[%emt 0:00:13]} exd5 {[%emt 0:00:01]} 8. Ne2 {[%emt 0:00:04]} Bc5 {[%emt 0:00:29]} 9. Ned4 {[%emt 0:00:24]} O-O {[%emt 0:00:06]} 10. g3 {[%emt 0:00:01]} Re8 {[%emt 0:00:09]} 11. Bg2 {[%emt 0:00:03]} Bf8 {[%emt 0:00:03]} 12. Ne2 {[%emt 0:00:12]} Nbd7 {[%emt 0:00:03]} 13. O-O {[%emt 0:00:03]} Rc8 {[%emt 0:00:15]} 14. Rc1 {[%emt 0:00:00]} Bd6 {[%emt 0:00:02]} 15. Nh4 {[%emt 0:00:18]} c5 {[%emt 0:00:20]} 16. d4 {[%emt 0:00:05]} Ne4 {[%emt 0:00:22]} 17. dxc5 {[%emt 0:00:12]} Ndxc5 {[%emt 0:00:17] [#]} ({Black should try} 17... Bxc5 $14 18. Nf4 Ndf6) 18. Nf5 {[%emt 0:00:04]} ({White should play} 18. b4 $1 $16 {[%cal Rb4c5]}) 18... Bf8 $14 {[%emt 0:00:02]} 19. Nf4 {[%emt 0:00:07] Nh5 would now be deadly.} a5 $2 {[%emt 0:00:57] [#]} (19... g6 $14) 20. h4 $2 {[%emt 0:00:24]} (20. Nh5 $1 $18 d4 21. exd4 (21. Qxd4 f6 $18) (21. Bxd4 g6 $18)) 20... g6 {[%emt 0:00:10]} 21. Nd4 {[%emt 0:00:13]} Ba6 {[%emt 0:00:03] Prevents Nb5.} 22. Re1 {[%emt 0:00:05]} Bg7 {[%emt 0:00:00]} 23. Bf1 {[%emt 0:00:07]} Bxf1 24. Rxf1 {[%emt 0:00:02]} Qd7 {[%emt 0:00:06]} 25. Qe2 {[%emt 0:00:08]} Rcd8 {[%emt 0:00:03]} (25... Be5 $11) 26. Rfd1 {[%emt 0:00:01]} h5 {[%emt 0:00:05]} (26... Be5 $11) 27. Kg2 {[%emt 0:00:17]} Qb7 {[%emt 0:00:02]} 28. Nf3 {[%emt 0:00:07]} Qa8 {[%emt 0:00:07]} (28... Bh6 $14) 29. Bxg7 $16 {[%emt 0:00:02]} Kxg7 {[%emt 0:00:01]} 30. Qb2+ {[%emt 0:00:03]} Kg8 {[%emt 0:00:00]} 31. Qd4 {[%emt 0:00:04]} (31. Nd4 $16) 31... Qb7 {[%emt 0:00:04]} 32. Nxd5 {[%emt 0:00:14]} (32. Ne1 $14) 32... Rd6 $11 {[%emt 0:00:02]} 33. Ng5 $2 {[%emt 0:00:09][%mdl 8192] Weighted Error Value: White=0.29 (precise) /Black=0.27 (precise) .  Loses game:     	White=1     	Black=1      Missed win:     	White=1     	---        Mistake:       	White=3     	Black=4      Inaccurate:     	White=4     	Black=3      OK:         	White=9     	Black=8      Best:        	White=1     	Black=2} (33. Qc4 $1 $11 {and White stays safe.}) 0-1

[Event "Indian Blitz Championship 2023"]
[Site "Nashik"]
[Date "2024.03.07"]
[Round "10.8"]
[White "Srihari L R"]
[Black "Manish Anto Cristiano F"]
[Result "1-0"]
[ECO "C54"]
[WhiteElo "2490"]
[BlackElo "2286"]
[Annotator "TA"]
[PlyCount "94"]
[EventDate "2024.03.07"]
[EventType "blitz"]
[EventCountry "IND"]
[SourceTitle "playchess.com"]
[Source "ChessBase"]
[SourceQuality "1"]
[TimeControl "180+2"]

{[%evp 13,94,40,54,27,43,30,37,48,123,130,125,128,159,122,136,109,220,212,201,199,196,179,327,331,352,344,358,179,188,168,187,185,188,179,178,164,179,160,169,185,171,180,168,80,81,95,118,116,204,205,181,183,230,230,320,302,313,295,307,277,787,763,779,769,929,768,1712,1553,1668,1529,1613,1400,1861,1693,6684,6937,29981,29982,29985,29986,29986,29984,29984]} 1. e4 {[%emt 0:00:01]} e5 {[%emt 0:00:00]} 2. Nf3 {[%emt 0:00:01]} Nc6 {[%emt 0:00:01]} 3. Bc4 {[%emt 0:00:00]} Bc5 {[%emt 0:00:02]} 4. c3 {[%emt 0:00:01]} Nf6 {[%emt 0:00:01][%cal Bg8f6,Bf6d5,Bd5b6][%mdl 32]} 5. d3 {[%emt 0:00:01]} O-O {[%emt 0:00:06]} 6. O-O {[%emt 0:00:02]} d5 {[%emt 0:00:01]} 7. exd5 {[%emt 0:00:01]} Nxd5 {[%emt 0:00:02]} 8. a4 {[%emt 0:00:00][%cal Ba2a4,Ba4a5,Ba5a6,Ba6b7][%mdl 32]} Bg4 {[%emt 0:00:25]} 9. Nbd2 {[%emt 0:00:09]} Nb6 {[%emt 0:00:04]} 10. Bb5 {[%emt 0:00:05] Weiß steht etwas besser.} f6 {[%emt 0:00:10]} ({Vorzuziehen ist} 10... a5 $14) 11. a5 $16 {[%emt 0:00:07]} Nd5 {[%emt 0:00:08]} 12. a6 {[%emt 0:00:03]} Nce7 {[%emt 0:00:18]} 13. axb7 {[%emt 0:00:16]} Rb8 {[%emt 0:00:01]} 14. Ne4 {[%emt 0:00:02]} c6 {[%emt 0:00:34]} (14... Bb6 $16) 15. Nxc5 $18 {[%emt 0:00:19]} cxb5 {[%emt 0:00:01]} 16. h3 {[%emt 0:00:00]} (16. Rxa7 $2 Qb6 17. Ra6 Qxc5 $19) 16... Qb6 {[%emt 0:00:08] [#] ...Bxf3 ist eine echte Drohung.} 17. b4 {[%emt 0:00:08]} Bxf3 {[%emt 0:00:10]} (17... Bh5 {ist wohl besser.} 18. Bd2 Nc6) 18. Qxf3 {[%emt 0:00:04]} Nxc3 {[%emt 0:00:02]} 19. Ra6 {[%emt 0:00:31]} Qc7 {[%emt 0:00:02]} 20. Ne6 {[%emt 0:00:02]} (20. Rxa7 Nc6 $18) (20. Be3 $142) 20... Qxb7 {[%emt 0:00:03]} 21. Qxb7 {[%emt 0:00:02]} Rxb7 {[%emt 0:00:01]} 22. Nxf8 {[%emt 0:00:01]} Kxf8 {[%emt 0:00:04]} 23. Be3 {[%emt 0:00:02]} Ned5 {[%emt 0:00:16]} 24. Rxa7 {[%emt 0:00:14]} Nxe3 {[%emt 0:00:07]} ({Jedoch nicht} 24... Ne2+ $2 25. Kh2 Rxa7 26. Bxa7) 25. Rxb7 {[%emt 0:00:41]} (25. Ra8+ Ke7 26. fxe3 Nd5) 25... Ne2+ {[%emt 0:00:01]} 26. Kh1 {[%emt 0:00:01]} Nxf1 {[%emt 0:00:02]} 27. Rxb5 {[%emt 0:00:05] [#] Schwarz muss nun Rc5 beachten.} Nd2 {[%emt 0:00:20]} 28. Rc5 {[%emt 0:00:05]} (28. Rb8+ $18 Ke7 29. Rb7+ Kd6 30. Rxg7) 28... Nb3 $16 {[%emt 0:00:04]} 29. Rc8+ {[%emt 0:00:04][%mdl 1024] Weiss hat starke Kompensation.} Ke7 {[%emt 0:00:02]} 30. b5 {[%emt 0:00:01][%cal Bb4b5,Bb5b6][%mdl 32] Und b6 würde nun gewinnen.} Kd6 {[%emt 0:00:06]} (30... Kd7 $16 {ist eine bessere Verteidigung.} 31. Rg8 g6) 31. b6 $18 {[%emt 0:00:10] Weiss will mit b7 Matt setzen.} Na5 {[%emt 0:00:02]} 32. Rc7 {[%emt 0:00:07]} g5 {[%emt 0:00:19]} (32... h5 {kämpft weiter.} 33. Ra7 (33. Rxg7 Kc6 $16) 33... Nc6 34. Rxg7 Nf4) 33. Rxh7 {[%emt 0:00:05]} Kc6 {[%emt 0:00:01]} 34. Rf7 {[%emt 0:00:01]} Kxb6 {[%emt 0:00:02]} 35. Rxf6+ {[%emt 0:00:01]} Kc5 {[%emt 0:00:01]} 36. Rf5 {[%emt 0:00:02]} Kd4 {[%emt 0:00:01]} (36... Kd6 37. Rxg5 Nc1) 37. Rxg5 {[%emt 0:00:01]} Nf4 {[%emt 0:00:06]} 38. h4 {[%emt 0:00:06][%cal Bh3h4,Bh4h5,Bh5h6,Bh6h7][%mdl 32]} Nc6 {[%emt 0:00:04]} 39. h5 {[%emt 0:00:02] h6 wäre nun fies.} Ne7 {[%emt 0:00:14]} 40. h6 {[%emt 0:00:01]} Nfg6 {[%emt 0:00:01]} 41. h7 {[%emt 0:00:03]} Nh8 {[%emt 0:00:03]} 42. Kh2 {[%emt 0:00:11]} Neg6 {[%emt 0:00:01]} 43. Kg3 {[%emt 0:00:03] Droht stark Kg4.} Kxd3 {[%emt 0:00:02]} 44. Kg4 {[%emt 0:00:02] Weiss droht Kf5 und Matt.} e4 {[%emt 0:00:08]} 45. Kf5 {[%emt 0:00:02] Weiß setzt Matt.} Nh4+ {[%emt 0:00:02]} 46. Kf6 {[%emt 0:00:03]} Ke2 {[%emt 0:00:02]} 47. Rg4 {[%emt 0:00:06]} Kxf2 {[%emt 0:00:05] Gewichteter Fehlerwert: Weiß=0.19 (sehr präzise) /Schwarz=0.50.  Fehler:       	Weiß=2     	Schwarz=6     Ungenau:       	---       	Schwarz=1     OK:         	Weiß=16    	Schwarz=9     Bester:       	Weiß=4     	Schwarz=5} 1-0

[Event "Indian Blitz Championship 2023"]
[Site "Nashik"]
[Date "2024.03.07"]
[Round "10.9"]
[White "Sharma, Dinesh K."]
[Black "Aakash Sharadchandra, Dalvi"]
[Result "1-0"]
[ECO "D37"]
[WhiteElo "2209"]
[BlackElo "2291"]
[Annotator "RC"]
[PlyCount "103"]
[EventDate "2024.03.07"]
[EventType "blitz"]
[EventCountry "IND"]
[SourceTitle "playchess.com"]
[Source "ChessBase"]
[SourceQuality "1"]
[TimeControl "180+2"]

1. Nf3 {[%emt 0:00:02]} d5 {[%emt 0:00:01]} 2. d4 {[%emt 0:00:01]} e6 {[%emt 0:00:01]} 3. c4 {[%emt 0:00:02]} a6 {[%emt 0:00:00]} 4. cxd5 {[%emt 0:00:04]} exd5 {[%emt 0:00:01]} 5. Nc3 {[%emt 0:00:02]} Nf6 {[%emt 0:00:09]} 6. Bg5 {[%emt 0:00:02]} c6 {[%emt 0:00:12]} 7. e3 {[%emt 0:00:06]} Be6 {[%emt 0:00:11]} 8. Bd3 {[%emt 0:00:03]} Be7 {[%emt 0:00:02]} 9. Qc2 {[%emt 0:00:02]} Nbd7 {[%emt 0:00:02]} 10. h3 {[%emt 0:00:02]} h6 {[%emt 0:00:02]} 11. Bf4 {[%emt 0:00:03]} O-O {[%emt 0:00:03]} 12. g4 {[%emt 0:00:02]} c5 {[%emt 0:00:05]} 13. g5 {[%emt 0:00:20]} hxg5 {[%emt 0:00:01]} 14. Nxg5 {[%emt 0:00:02]} cxd4 {[%emt 0:00:11]} 15. exd4 {[%emt 0:00:04]} Qb6 {[%emt 0:00:01]} 16. O-O-O {[%emt 0:00:08]} Rfe8 {[%emt 0:00:22]} 17. Kb1 {[%emt 0:00:08]} Nf8 {[%emt 0:00:05]} 18. Rhg1 {[%emt 0:00:03]} Rac8 {[%emt 0:00:07]} 19. Be5 {[%emt 0:00:18]} Qd8 {[%emt 0:00:17]} 20. f4 {[%emt 0:00:11]} Bb4 {[%emt 0:00:23]} 21. f5 {[%emt 0:00:10]} Bd7 {[%emt 0:00:20]} 22. Qg2 {[%emt 0:00:14]} Nh5 {[%emt 0:00:46]} 23. Bxg7 {[%emt 0:00:32]} Nxg7 {[%emt 0:00:01]} 24. Nf3 {[%emt 0:00:09]} Ng6 {[%emt 0:00:16]} 25. fxg6 {[%emt 0:00:04]} f6 {[%emt 0:00:01]} 26. Nxd5 {[%emt 0:00:07]} Bd6 {[%emt 0:00:10]} 27. Qf2 {[%emt 0:00:08]} Be6 {[%emt 0:00:01]} 28. Nc3 {[%emt 0:00:36]} Rxc3 {[%emt 0:00:01]} 29. bxc3 {[%emt 0:00:02]} Qa5 {[%emt 0:00:01]} 30. Qc2 {[%emt 0:00:07]} Rc8 {[%emt 0:00:00]} 31. c4 {[%emt 0:00:02]} b6 {[%emt 0:00:07]} 32. Rge1 {[%emt 0:00:02]} Qh5 {[%emt 0:00:03]} 33. Qe2 {[%emt 0:00:02]} b5 {[%emt 0:00:01]} 34. d5 {[%emt 0:00:02]} Bd7 {[%emt 0:00:01]} 35. Nd4 {[%emt 0:00:02]} bxc4 {[%emt 0:00:01]} 36. Qxh5 {[%emt 0:00:02]} Nxh5 {[%emt 0:00:01]} 37. Bf5 {[%emt 0:00:01]} Bxf5+ 38. Nxf5 {[%emt 0:00:00]} Rb8+ {[%emt 0:00:05]} 39. Kc2 {[%emt 0:00:02]} Be5 {[%emt 0:00:00]} 40. Rb1 {[%emt 0:00:02]} Rd8 {[%emt 0:00:01]} 41. Red1 {[%emt 0:00:03]} Nf4 {[%emt 0:00:01]} 42. d6 {[%emt 0:00:01]} Nxg6 {[%emt 0:00:02]} 43. d7 {[%emt 0:00:04]} Kf7 {[%emt 0:00:01]} 44. Rb6 {[%emt 0:00:03]} Nf4 {[%emt 0:00:06]} 45. Rxa6 {[%emt 0:00:03]} Ng2 {[%emt 0:00:01]} 46. Rg1 {[%emt 0:00:02]} Nf4 {[%emt 0:00:02]} 47. Rg7+ {[%emt 0:00:01]} Kf8 {[%emt 0:00:01]} 48. Rh7 {[%emt 0:00:01]} Kg8 {[%emt 0:00:00]} 49. Re7 {[%emt 0:00:01]} Kf8 {[%emt 0:00:03]} 50. h4 {[%emt 0:00:04]} Ng6 {[%emt 0:00:07]} 51. Rh7 {[%emt 0:00:01]} Nf4 {[%emt 0:00:04]} 52. Rh8+ {[%emt 0:00:02]} 1-0

[Event "Indian Blitz Championship 2023"]
[Site "Nashik"]
[Date "2024.03.07"]
[Round "10.10"]
[White "Srihari L R"]
[Black "Krishnan, Ritvik"]
[Result "1-0"]
[ECO "D38"]
[WhiteElo "2490"]
[BlackElo "2277"]
[Annotator "TA"]
[PlyCount "109"]
[EventDate "2024.03.07"]
[EventType "blitz"]
[EventCountry "IND"]
[SourceTitle "playchess.com"]
[Source "ChessBase"]
[SourceQuality "1"]
[TimeControl "180+2"]

{[%evp 12,109,13,11,38,25,32,28,12,11,45,33,44,27,18,-16,-12,-5,-6,-18,-6,-34,-35,-22,0,-8,-1,-8,-6,-5,0,-7,0,-10,0,-5,0,-9,-19,-18,0,-37,0,0,0,-16,-19,-22,0,0,6,0,0,0,0,0,0,0,0,0,0,-7,0,0,0,0,0,0,11,0,69,45,72,59,62,0,132,59,185,59,59,59,62,59,59,29,59,59,59,40,40,40,29980,29981,29984,29985,29988,29989,29989,29990]} 1. d4 {[%emt 0:00:03]} Nf6 {[%emt 0:00:01]} 2. c4 {[%emt 0:00:06]} e6 {[%emt 0:00:02]} 3. Nf3 {[%emt 0:00:01]} d5 {[%emt 0:00:02]} 4. Nc3 {[%emt 0:00:02]} Bb4 {[%emt 0:00:01]} 5. Qa4+ {[%emt 0:00:02]} Nc6 {[%emt 0:00:01]} 6. e3 {[%emt 0:00:01]} O-O {[%emt 0:00:03]} 7. Bd2 {[%emt 0:00:01]} Re8 {[%emt 0:00:28]} 8. Rd1 {[%emt 0:00:10]} Bf8 {[%emt 0:00:13]} 9. a3 {[%emt 0:00:02]} Bd7 {[%emt 0:00:08][%cal Oc6d4] Threatens to win with ...Nxd4! White has an edge.} 10. Qc2 {[%emt 0:00:03]} Ne7 {[%emt 0:00:09]} 11. Ne5 {[%emt 0:00:19]} Ng6 {[%emt 0:00:04]} 12. Be2 {[%emt 0:00:05]} dxc4 {[%emt 0:00:25]} 13. Nxg6 {[%emt 0:00:21]} hxg6 {[%emt 0:00:03]} 14. Bxc4 {[%emt 0:00:01]} c5 {[%emt 0:00:21]} 15. dxc5 {[%emt 0:00:26]} Bxc5 {[%emt 0:00:06]} 16. O-O {[%emt 0:00:04]} (16. Ne4 $5 Be7 17. Nxf6+ Bxf6 18. Bc3 $15) 16... Rc8 {[%emt 0:00:19][%cal Oc5a3]} 17. Qb3 {[%emt 0:00:13]} Qb6 {[%emt 0:00:28]} 18. Qxb6 {[%emt 0:00:31]} Bxb6 {[%emt 0:00:01]} 19. Be2 {[%emt 0:00:01]} Bc6 {[%emt 0:00:09]} 20. Rc1 {[%emt 0:00:06]} a6 {[%emt 0:00:04]} 21. Rfd1 {[%emt 0:00:01]} Red8 {[%emt 0:00:01]} 22. Kf1 {[%emt 0:00:04]} Rd7 {[%emt 0:00:17]} 23. Be1 {[%emt 0:00:15]} Rdc7 {[%emt 0:00:12]} 24. Bf3 {[%emt 0:00:30]} Bxf3 {[%emt 0:00:03]} 25. gxf3 {[%emt 0:00:01]} Ba7 {[%emt 0:00:05]} 26. Rd3 {[%emt 0:00:10]} Kf8 {[%emt 0:00:02]} 27. Rcd1 {[%emt 0:00:01]} Ke8 {[%emt 0:00:02]} 28. Ke2 {[%emt 0:00:03]} Bc5 {[%emt 0:00:02]} 29. f4 {[%emt 0:00:04]} b5 {[%emt 0:00:01]} 30. Na2 {[%emt 0:00:06]} Bb6 {[%emt 0:00:02]} 31. Rc3 {[%emt 0:00:05]} (31. Kf3 {keeps more tension.} Rc2 32. Rd6 Rd8 33. Nb4) 31... Rxc3 {[%emt 0:00:02]} 32. Bxc3 {[%emt 0:00:01]} Ke7 {[%emt 0:00:02]} 33. Nb4 {[%emt 0:00:03]} a5 {[%emt 0:00:01]} 34. Nd3 {[%emt 0:00:01]} Ne4 {[%emt 0:00:06]} 35. Rc1 {[%emt 0:00:05][%cal Oc3b4] Bb4+! would now be deadly.} (35. Bxg7 Rc2+ 36. Kf3 Nd2+ 37. Kg4 f6 $15) 35... Nxc3+ {[%emt 0:00:01]} 36. bxc3 $11 {[%emt 0:00:02][%mdl 4096] Endgame. KRB-KRN} Rc4 {[%emt 0:00:01]} 37. Rb1 {[%emt 0:00:02]} Rxc3 {[%emt 0:00:01]} 38. Rxb5 {[%emt 0:00:01]} Bd8 {[%emt 0:00:02]} 39. Rb7+ {[%emt 0:00:02]} Ke8 {[%emt 0:00:01]} 40. a4 {[%emt 0:00:00]} Rc4 {[%emt 0:00:04]} (40... Rc2+ $11 41. Kd1 Ra2) 41. Ne5 {[%emt 0:00:02]} (41. Rxf7 $5 Bf6 42. Ra7 Rxa4 43. Nc5 Ra2+ 44. Kf3 $16) 41... Rc7 {[%emt 0:00:04]} 42. Rb5 {[%emt 0:00:03] White is more active.} Rc2+ {[%emt 0:00:02]} 43. Kf3 {[%emt 0:00:01]} (43. Kd3 $1 $14 Rc1 44. Rb8) 43... Ra2 {[%emt 0:00:01] [#]} (43... Bc7 $11 {remains equal.}) 44. Rb7 {[%emt 0:00:01]} ({White should play} 44. Rb8 $1 $16) 44... f6 {[%emt 0:00:01] [#]} (44... Rxa4 $14 45. Nxf7 (45. Rxf7 Bf6 $11) 45... Bf6) 45. Nxg6 {[%emt 0:00:02]} (45. Nc6 $1 $18) 45... Rxa4 $14 {[%emt 0:00:01]} 46. Rxg7 {[%emt 0:00:01] aiming for h4.} Ra1 $1 {[%emt 0:00:03]} 47. h4 {[%emt 0:00:01][%cal Bh2h4,Bh4h5,Bh5h6,Bh6h7][%mdl 32] Hoping for h5.} a4 {[%emt 0:00:01][%cal Ba5a4,Ba4a3,Ba3a2][%mdl 32]} 48. h5 {[%emt 0:00:01]} a3 {[%emt 0:00:01]} 49. Ra7 {[%emt 0:00:07]} a2 {[%emt 0:00:03]} 50. Kg2 {[%emt 0:00:01]} Bb6 {[%emt 0:00:02]} 51. Ra6 {[%emt 0:00:02]} Bc5 $2 {[%emt 0:00:06][%mdl 8192]} (51... Kf7 $14) 52. h6 {[%emt 0:00:01] White mates.} (52. Rxe6+ Kf7 53. Ra6 Kg7 $11) 52... Bf8 {[%emt 0:00:02]} 53. Nxf8 {[%emt 0:00:04]} ({Not} 53. Rxe6+ Kf7 54. h7 Rg1+ 55. Kxg1 a1=Q+ 56. Kh2 Qf1 $11) 53... Kxf8 {[%emt 0:00:01]} 54. Ra8+ {[%emt 0:00:01]} (54. Rxe6 Rg1+ 55. Kxg1 a1=Q+ (55... a1=B 56. Ra6 Kg8 57. Rxa1 Kh7 58. Kh2 Kxh6 59. Rg1 f5 60. Kh3) 56. Kh2 Kf7 $19) 54... Kf7 {[%emt 0:00:01]} 55. h7 {[%emt 0:00:00] Weighted Error Value: White=0.13 (very precise) /Black=0.24 (precise) .  Loses game:     	---       	Black=1      Mistake:       	White=3     	Black=3      Inaccurate:     	White=4     	Black=4      OK:         	White=12    	Black=13     Best:        	White=2     	Black=4      Strong:       	---       	Black=1} 1-0

[Event "Indian Blitz Championship 2023"]
[Site "Nashik"]
[Date "2024.03.07"]
[Round "11.1"]
[White "Mitrabha, Guha"]
[Black "Ghosh, Diptayan"]
[Result "0-1"]
[ECO "B10"]
[WhiteElo "2526"]
[BlackElo "2559"]
[Annotator "TA"]
[PlyCount "82"]
[EventDate "2024.03.07"]
[EventType "blitz"]
[EventCountry "IND"]
[SourceTitle "playchess.com"]
[Source "ChessBase"]
[SourceQuality "1"]
[TimeControl "180+2"]

{[%evp 13,82,0,12,-8,0,-37,-38,-41,1,-34,-35,-30,-25,-41,-16,-39,-52,-40,-14,-42,-18,-65,-47,-93,-54,-58,-19,-19,0,0,0,0,7,0,0,0,0,0,0,0,0,-5,0,-141,0,0,0,0,0,0,0,0,0,0,0,-257,-244,-328,-257,-1387,-886,-29977,-5210,-29982,-29983,-29982,-29972,-29997,-29998,-29998,-29999]} 1. Nf3 {[%emt 0:00:01]} d5 {[%emt 0:00:01]} 2. g3 {[%emt 0:00:01]} Nd7 {[%emt 0:00:01]} 3. Bg2 {[%emt 0:00:08]} e5 {[%emt 0:00:01]} 4. d3 {[%emt 0:00:04]} Ngf6 {[%emt 0:00:01]} 5. O-O {[%emt 0:00:05]} Bd6 {[%emt 0:00:01]} 6. Nbd2 {[%emt 0:00:01]} O-O {[%emt 0:00:01]} 7. e4 {[%emt 0:00:01]} c6 {[%emt 0:00:01]} 8. c3 {[%emt 0:00:01]} a5 {[%emt 0:00:01]} 9. a4 {[%emt 0:00:01]} Re8 {[%emt 0:00:02]} 10. Qc2 {[%emt 0:00:01] Black is slightly better.} b6 {[%emt 0:00:03]} 11. Rd1 {[%emt 0:00:10]} Ba6 {[%emt 0:00:03]} 12. Nf1 {[%emt 0:00:06]} Qc7 {[%emt 0:00:03]} 13. Nh4 {[%emt 0:00:12]} Rad8 {[%emt 0:00:03]} 14. Ne3 {[%emt 0:00:06]} dxe4 {[%emt 0:00:13]} 15. dxe4 {[%emt 0:00:03]} Bc5 {[%emt 0:00:02]} 16. h3 {[%emt 0:00:33]} Nf8 {[%emt 0:00:06]} 17. Nef5 {[%emt 0:00:02]} (17. Rxd8 $1 $11 Rxd8 18. Bf1 Bxf1 19. Kxf1) 17... Ne6 {[%emt 0:00:05]} (17... Rxd1+ $5 18. Qxd1 Ne6 $15) 18. Be3 {[%emt 0:00:28]} (18. Rxd8 $15 Rxd8 19. Bf1 Bxf1 20. Kxf1) 18... Bxe3 {[%emt 0:00:09]} (18... g6 {looks sharper.} 19. Nh6+ Kg7 20. Bxc5 Nxc5 21. b4 Ne6) 19. Nxe3 {[%emt 0:00:01]} Rxd1+ {[%emt 0:00:02]} 20. Rxd1 {[%emt 0:00:01]} Rd8 {[%emt 0:00:00]} 21. Rxd8+ {[%emt 0:00:08]} Qxd8 {[%emt 0:00:02]} 22. Nf3 {[%emt 0:00:09]} Qc7 {[%emt 0:01:00]} 23. Bf1 {[%emt 0:00:10]} Bxf1 {[%emt 0:00:03]} 24. Kxf1 {[%emt 0:00:01]} Nc5 {[%emt 0:00:01]} 25. Nd2 {[%emt 0:00:01]} b5 {[%emt 0:00:05]} 26. axb5 {[%emt 0:00:06]} cxb5 {[%emt 0:00:00]} 27. f3 {[%emt 0:00:19]} g6 {[%emt 0:00:07]} 28. Nb3 {[%emt 0:00:10] [#]} (28. b4 $11 {keeps the balance.} Na6 29. bxa5) 28... Kg7 {[%emt 0:00:31]} ({Better is} 28... Nxb3 $1 $17 29. Qxb3 Qd7) 29. Nxc5 $11 {[%emt 0:00:07]} Qxc5 {[%emt 0:00:01][%mdl 4096] Endgame. KQN-KQN} 30. Qd3 {[%emt 0:00:06]} a4 {[%emt 0:00:08]} 31. g4 {[%emt 0:00:08]} b4 {[%emt 0:00:08]} 32. cxb4 {[%emt 0:00:20]} Qxb4 {[%emt 0:00:00]} 33. Nc4 {[%emt 0:00:05]} Nd7 {[%emt 0:00:23]} 34. Ke2 $2 {[%emt 0:00:07][%mdl 8192]} (34. Qd5 $11) 34... Nb6 $19 {[%emt 0:00:04]} 35. Nxb6 {[%emt 0:00:05] [#] Nc4 would now be deadly.} Qxb2+ {[%emt 0:00:02]} ({Not} 35... Qxb6 36. Qc3 $15) 36. Kf1 $2 {[%emt 0:00:02]} (36. Qd2 Qxb6 37. Qc3) 36... Qxb6 {[%emt 0:00:01] KQ-KQ} 37. Qd5 {[%emt 0:00:00]} Qb1+ {[%emt 0:00:06]} 38. Kg2 {[%emt 0:00:01]} Qb2+ {[%emt 0:00:00] Black mates.} 39. Kg3 {[%emt 0:00:00]} Qd4 {[%emt 0:00:06]} 40. Qc6 {[%emt 0:00:02]} Qg1+ {[%emt 0:00:04]} 41. Kh4 {[%emt 0:00:00]} Qf2+ {[%emt 0:00:02] Weighted Error Value: White=0.90/Black=0.34.  Loses game:     	White=1     	---        Mistake:       	White=4     	Black=1      Inaccurate:     	White=5     	Black=6      OK:         	White=8     	Black=9      Best:        	---       	Black=2} 0-1